bitfinex/quotes_BTCUSD_20250108
["timestamp","ask_amount","ask_price","bid_price","bid_amount"]
[1736379436328,0.000116,95122.0,95121.0,0.02405119]
[1736379436540,0.000116,95122.0,95121.0,0.12835095]
[1736379436681,0.000116,95122.0,95121.0,0.37835095]
[1736379436891,0.000116,95122.0,95121.0,0.45399976]
[1736379437090,0.000116,95122.0,95121.0,0.55399976]
[1736379437341,0.000116,95122.0,95121.0,0.55499976]
[1736379437512,0.000116,95122.0,95121.0,0.55599976]
[1736379437914,0.000116,95122.0,95121.0,0.59957439]
[1736379438718,0.000116,95122.0,95121.0,0.56679762]
[1736379438922,0.000116,95122.0,95121.0,0.56579762]
[1736379439121,0.000116,95122.0,95121.0,0.56979762]
[1736379439653,0.000116,95122.0,95121.0,0.56879762]
[1736379440046,0.000116,95122.0,95121.0,0.9341272]
[1736379440251,0.001116,95122.0,95121.0,0.9341272]
[1736379441075,0.000116,95122.0,95121.0,0.9261272]
[1736379441233,0.001116,95122.0,95121.0,0.9351272]
[1736379441636,0.001116,95122.0,95121.0,0.90239762]
[1736379441909,0.001116,95122.0,95121.0,0.89839762]
[1736379442246,0.001116,95122.0,95121.0,0.90339762]
[1736379442482,0.0454,95158.0,95154.0,0.210183]
[1736379442687,0.00011602,95158.0,95155.0,0.023]
[1736379442908,0.01036243,95157.0,95155.0,0.023]
[1736379443700,0.01036243,95157.0,95156.0,0.233181]
[1736379444104,0.00211602,95158.0,95157.0,0.023]
[1736379444280,0.00611602,95158.0,95157.0,0.023]
[1736379444688,0.00211602,95158.0,95157.0,0.023]
[1736379445115,0.00011602,95158.0,95157.0,0.023]
[1736379446338,0.00111602,95158.0,95157.0,0.023]
[1736379453705,0.00111602,95158.0,95149.0,0.210196]
[1736379453922,0.1277,95157.0,95144.0,0.23170847]
[1736379454125,0.0793,95156.0,95126.0,0.1]
[1736379454322,0.0793,95156.0,95139.0,0.210217]
[1736379454612,0.21019,95152.0,95139.0,0.31451676]
[1736379454820,0.0793,95151.0,95139.0,0.210217]
[1736379455022,0.08970859,95151.0,95142.0,0.023]
[1736379455230,0.210203,95146.0,95134.0,0.534828]
[1736379455436,0.0793,95145.0,95128.0,0.210242]
[1736379455644,0.0793,95139.0,95122.0,0.02140631]
[1736379455853,0.0793,95139.0,95126.0,0.210245]
[1736379456053,0.0793,95139.0,95127.0,0.023]
[1736379456225,0.21023,95134.0,95123.0,0.023]
[1736379456480,0.01037851,95133.0,95124.0,0.210251]
[1736379456810,0.01037851,95133.0,95122.0,0.31455476]
[1736379457012,0.01037851,95133.0,95124.0,0.210251]
[1736379457212,0.0765,95132.0,95125.0,0.023]
[1736379457419,0.01037442,95131.0,95123.0,0.023]
[1736379457620,0.01037442,95131.0,95125.0,0.023]
[1736379458297,0.01037442,95131.0,95123.0,0.023]
[1736379458506,0.01037442,95131.0,95125.0,0.023]
[1736379459407,0.01137442,95131.0,95125.0,0.023]
[1736379459821,0.01037442,95131.0,95125.0,0.023]
[1736379459995,0.01037442,95131.0,95122.0,0.210255]
[1736379460199,0.0452,95130.0,95121.0,0.05512]
[1736379460398,0.0452,95130.0,95118.0,0.023]
[1736379460716,0.0832,95127.0,95118.0,0.023]
[1736379460919,0.0832,95127.0,95116.0,0.023]
[1736379461103,0.01032908,95126.0,95116.0,0.233269]
[1736379462001,0.01037921,95126.0,95116.0,0.233269]
[1736379463557,0.01237921,95126.0,95116.0,0.233269]
[1736379463717,0.01737921,95126.0,95116.0,0.233269]
[1736379463920,0.01237921,95126.0,95116.0,0.233269]
[1736379464317,0.01437921,95126.0,95116.0,0.233269]
[1736379464623,0.01237921,95126.0,95116.0,0.233269]
[1736379465195,0.01437921,95126.0,95116.0,0.233269]
[1736379465562,0.22062621,95126.0,95112.0,0.210276]
[1736379465963,0.0827,95120.0,95108.0,0.210285]
[1736379466174,0.210262,95119.0,95109.0,0.023]
[1736379466420,0.22056527,95119.0,95109.0,0.023]
[1736379466601,0.01030327,95119.0,95109.0,0.023]
[1736379467363,0.01030327,95119.0,95111.0,0.023]
[1736379468547,0.01030327,95119.0,95109.0,0.024]
[1736379468824,0.01030327,95119.0,95109.0,0.023]
[1736379469034,0.01030327,95119.0,95111.0,0.024]
[1736379469979,0.0497,95118.0,95111.0,0.024]
[1736379470323,0.0497,95118.0,95111.0,0.001]
[1736379470324,0.01029918,95117.0,95111.0,0.001]
[1736379470543,0.0823,95116.0,95111.0,0.001]
[1736379470742,0.0823,95116.0,95108.0,0.023]
[1736379470960,0.01028189,95115.0,95108.0,0.023]
[1736379471163,0.01028189,95115.0,95109.0,0.001]
[1736379471506,0.01028189,95115.0,95108.0,0.023]
[1736379472298,0.01128189,95115.0,95108.0,0.023]
[1736379472512,0.01328189,95115.0,95108.0,0.023]
[1736379473085,0.01228189,95115.0,95108.0,0.023]
[1736379473880,0.01228189,95115.0,95114.0,0.023]
[1736379474084,0.01028189,95115.0,95114.0,0.023]
[1736379474196,0.01228189,95115.0,95114.0,0.023]
[1736379474399,0.002,95115.0,95114.0,0.12835104]
[1736379474640,0.001,95115.0,95114.0,0.33862404]
[1736379474843,0.001,95115.0,95114.0,0.33757276]
[1736379475226,5.013e-05,95126.0,95125.0,0.233249]
[1736379476061,5.013e-05,95126.0,95125.0,0.33754876]
[1736379476261,5.013e-05,95126.0,95125.0,0.34808459]
[1736379476505,5.013e-05,95126.0,95125.0,0.46942694]
[1736379476707,5.013e-05,95126.0,95125.0,1.12152694]
[1736379476914,0.09423831,95164.0,95148.0,0.210198]
[1736379477052,0.09423831,95164.0,95163.0,0.210165]
[1736379477256,0.10283598,95164.0,95163.0,0.233165]
[1736379478429,0.00859767,95164.0,95163.0,0.233165]
[1736379478630,0.01459767,95164.0,95163.0,0.234165]
[1736379478758,0.00032107,95165.0,95164.0,0.023]
[1736379481376,0.00632107,95165.0,95164.0,0.023]
[1736379481603,0.00832107,95165.0,95164.0,0.023]
[1736379482597,0.00632107,95165.0,95164.0,0.023]
[1736379483041,0.00632107,95165.0,95164.0,0.12729976]
[1736379483042,0.00832107,95165.0,95164.0,0.12729976]
[1736379483224,0.00232107,95165.0,95164.0,0.12729976]
[1736379483428,0.00232107,95165.0,95164.0,0.12835038]
[1736379483629,0.00632107,95165.0,95164.0,0.12835038]
[1736379484005,0.00032107,95165.0,95164.0,0.12835038]
[1736379484366,0.00032107,95165.0,95164.0,0.12935038]
[1736379484701,0.00032107,95165.0,95164.0,0.22835038]
[1736379484902,0.00032107,95165.0,95164.0,0.30879976]
[1736379485235,0.00032107,95165.0,95164.0,0.31179976]
[1736379486131,0.00032107,95165.0,95164.0,0.31279976]
[1736379487665,0.00032107,95165.0,95164.0,0.13129976]
[1736379487889,0.00032107,95165.0,95164.0,0.10829976]
[1736379488065,0.00032107,95165.0,95164.0,0.13129976]
[1736379488362,0.00032107,95165.0,95164.0,0.13029976]
[1736379488663,0.00032107,95165.0,95164.0,0.12729976]
[1736379488868,0.00032107,95165.0,95164.0,0.12929976]
[1736379491570,0.00032107,95165.0,95164.0,0.12729976]
[1736379491966,0.00032107,95165.0,95164.0,0.12929976]
[1736379493117,0.00032107,95165.0,95164.0,0.025]
[1736379494980,0.00898049,95165.0,95164.0,0.023]
[1736379495211,0.00032107,95165.0,95164.0,0.023]
[1736379495420,0.00898049,95165.0,95164.0,0.024]
[1736379495625,0.00032107,95165.0,95164.0,0.024]
[1736379495824,0.00032107,95165.0,95164.0,0.023]
[1736379496851,0.00032107,95165.0,95164.0,0.024]
[1736379498845,0.00032107,95165.0,95164.0,0.12829976]
[1736379499050,0.00032107,95165.0,95164.0,0.12935043]
[1736379499663,0.00032107,95165.0,95164.0,0.12835043]
[1736379500008,0.00132107,95165.0,95164.0,0.12835043]
[1736379500183,0.00032107,95165.0,95164.0,0.12835043]
[1736379501742,0.00032107,95165.0,95164.0,0.13035043]
[1736379501975,0.00032107,95165.0,95164.0,0.13135043]
[1736379502557,0.0001704,95173.0,95165.0,0.3476]
[1736379502792,4e-07,95175.0,95174.0,1.2341]
[1736379503004,0.0001706,95204.0,95192.0,0.35]
[1736379503206,0.0001706,95204.0,95203.0,0.233077]
[1736379503407,0.00032105,95204.0,95203.0,0.43737676]
[1736379504369,0.09398293,95224.0,95222.0,0.023]
[1736379504681,0.23809772,95229.0,95222.0,0.10429976]
[1736379504682,0.0494,95229.0,95222.0,0.10429976]
[1736379504802,0.00729401,95223.0,95218.0,0.210043]
[1736379504999,0.00729401,95223.0,95220.0,0.210039]
[1736379505254,0.0494,95229.0,95223.0,0.023]
[1736379505465,0.00727501,95228.0,95223.0,0.023]
[1736379505635,0.00727501,95228.0,95225.0,0.023]
[1736379505858,0.0494,95229.0,95225.0,0.023]
[1736379506033,0.0494,95229.0,95225.0,0.04373809]
[1736379506249,0.0494,95229.0,95227.0,0.023]
[1736379506656,0.0494,95229.0,95226.0,0.023]
[1736379507271,0.0534,95229.0,95226.0,0.023]
[1736379507473,0.004,95229.0,95227.0,0.210024]
[1736379507813,0.004,95229.0,95228.0,0.023]
[1736379508785,0.005,95229.0,95228.0,0.023]
[1736379509291,0.004,95229.0,95228.0,0.023]
[1736379509492,0.0813,95240.0,95228.0,0.023]
[1736379509493,0.0813,95240.0,95230.0,0.023]
[1736379509702,0.08180129,95240.0,95230.0,0.023]
[1736379509922,0.00730623,95239.0,95230.0,0.023]
[1736379510170,0.00730623,95239.0,95228.0,0.023]
[1736379510533,0.006,95229.0,95228.0,0.023]
[1736379510955,0.08180129,95240.0,95228.0,0.12729976]
[1736379511279,0.006,95239.0,95230.0,0.024]
[1736379511577,0.01335979,95239.0,95230.0,0.10529976]
[1736379511946,0.01335979,95239.0,95231.0,0.023]
[1736379512683,0.01435979,95239.0,95234.0,0.023]
[1736379513047,0.007,95239.0,95236.0,0.023]
[1736379513247,0.00734753,95238.0,95236.0,0.023]
[1736379513597,0.001,95239.0,95236.0,0.023]
[1736379513852,0.00733936,95237.0,95236.0,0.023]
[1736379514055,0.001,95239.0,95236.0,0.023]
[1736379514436,0.00734549,95238.0,95236.0,0.023]
[1736379515177,0.001,95239.0,95236.0,0.023]
[1736379515384,0.00734753,95237.0,95236.0,0.023]
[1736379515587,0.003,95238.0,95236.0,0.023]
[1736379516016,0.00734753,95237.0,95236.0,0.023]
[1736379516535,0.004,95238.0,95236.0,0.023]
[1736379516763,0.00734753,95237.0,95236.0,0.023]
[1736379517081,0.004,95238.0,95236.0,0.023]
[1736379517438,0.00734753,95237.0,95236.0,0.023]
[1736379517846,0.00050129,95240.0,95236.0,0.023]
[1736379518212,0.001,95237.0,95232.0,0.05928]
[1736379518633,0.001,95237.0,95224.0,0.3246]
[1736379518805,0.047,95230.0,95224.0,0.3246]
[1736379519007,0.210024,95227.0,95224.0,0.3246]
[1736379519205,0.210024,95227.0,95225.0,0.023]
[1736379519437,0.00742694,95226.0,95225.0,0.023]
[1736379519610,0.210028,95225.0,95224.0,0.3246]
[1736379519972,0.210028,95225.0,95224.0,0.3476]
[1736379520157,0.2174529,95225.0,95224.0,0.3476]
[1736379521321,0.2174529,95225.0,95224.0,0.023]
[1736379522327,0.2184529,95225.0,95224.0,0.023]
[1736379522525,0.2204529,95225.0,95224.0,0.023]
[1736379523475,0.0104249,95225.0,95224.0,0.023]
[1736379526497,0.0104249,95225.0,95224.0,0.0234674]
[1736379526927,0.0104249,95225.0,95224.0,0.023]
[1736379527721,0.0084249,95225.0,95224.0,0.023]
[1736379528162,0.0104249,95225.0,95224.0,0.023]
[1736379528910,0.0094249,95225.0,95224.0,0.023]
[1736379529349,0.0104249,95225.0,95224.0,0.023]
[1736379547612,0.0104249,95225.0,95224.0,0.233031]
[1736379551598,0.0104249,95225.0,95224.0,0.023]
[1736379556952,0.003,95225.0,95224.0,0.023]
[1736379560996,0.00289214,95225.0,95224.0,0.023]
[1736379563966,0.00289214,95225.0,95224.0,0.20779976]
[1736379565014,0.09398293,95244.0,95239.0,0.209998]
[1736379565267,0.00794026,95240.0,95239.0,0.33729776]
[1736379565469,0.00050129,95240.0,95239.0,0.33729776]
[1736379566691,0.00950129,95240.0,95239.0,0.33829776]
[1736379566864,0.00050129,95240.0,95239.0,0.33729776]
[1736379567075,0.00150129,95240.0,95239.0,0.33729776]
[1736379567288,0.00450129,95240.0,95239.0,0.33729776]
[1736379567711,0.00350129,95240.0,95239.0,0.33729776]
[1736379567910,0.00450129,95240.0,95239.0,0.33729776]
[1736379569295,0.00150129,95240.0,95239.0,0.33729776]
[1736379569715,0.00450129,95240.0,95239.0,0.33729776]
[1736379569918,0.00350129,95240.0,95239.0,0.33729776]
[1736379570234,0.00450129,95240.0,95239.0,0.34229776]
[1736379570786,0.05,95256.0,95249.0,0.209974]
[1736379570987,0.05015035,95256.0,95251.0,0.023]
[1736379571191,0.05015035,95256.0,95253.0,0.023]
[1736379571389,0.05015035,95256.0,95253.0,0.12729976]
[1736379573101,0.05115035,95256.0,95253.0,0.12729976]
[1736379573806,0.05015035,95256.0,95253.0,0.12729976]
[1736379574018,0.05115035,95256.0,95253.0,0.12729976]
[1736379575869,0.05115035,95256.0,95245.0,0.266984]
[1736379576082,0.0833,95255.0,95246.0,0.10429976]
[1736379576329,0.09076067,95255.0,95247.0,0.023]
[1736379576580,0.09076067,95255.0,95247.0,0.12729976]
[1736379577050,0.09076067,95255.0,95243.0,0.057]
[1736379577269,0.09076067,95255.0,95244.0,0.10429976]
[1736379577551,0.09076067,95255.0,95245.0,0.023]
[1736379578326,0.09176067,95255.0,95245.0,0.023]
[1736379580119,0.09076067,95255.0,95245.0,0.023]
[1736379580974,0.09176067,95255.0,95245.0,0.023]
[1736379585983,0.09176067,95255.0,95240.0,0.209995]
[1736379586190,0.0495,95254.0,95241.0,0.10429976]
[1736379586388,0.05719468,95254.0,95242.0,0.023]
[1736379586557,0.05719468,95254.0,95244.0,0.023]
[1736379588855,0.05719468,95254.0,95240.0,0.209995]
[1736379589062,0.05719468,95254.0,95241.0,0.10429976]
[1736379590518,0.05719468,95254.0,95242.0,0.232991]
[1736379593062,0.05719468,95254.0,95242.0,0.023]
[1736379593864,0.209967,95253.0,95235.0,0.210005]
[1736379594025,0.08392095,95252.0,95235.0,0.210005]
[1736379594224,0.0762,95250.0,95237.0,0.023]
[1736379594621,0.00771483,95249.0,95236.0,0.023]
[1736379595762,0.209978,95248.0,95233.0,0.023]
[1736379595963,0.1307,95247.0,95233.0,0.023]
[1736379596289,0.0831,95246.0,95226.0,0.210026]
[1736379596491,0.0831,95246.0,95231.0,0.023]
[1736379596699,0.0077271,95245.0,95231.0,0.023]
[1736379597469,0.0831,95244.0,95226.0,0.23102519]
[1736379597653,0.09082302,95243.0,95226.0,0.23102519]
[1736379597855,0.0831,95239.0,95217.0,0.210045]
[1736379598058,0.00771982,95238.0,95217.0,0.210045]
[1736379598279,0.0831,95232.0,95231.0,0.002]
[1736379598489,0.09080778,95232.0,95231.0,0.002]
[1736379598624,0.09080778,95232.0,95216.0,0.0943907]
[1736379598821,0.09080778,95232.0,95217.0,0.023]
[1736379600139,0.00770778,95232.0,95223.0,0.023]
[1736379600570,0.0831,95238.0,95231.0,0.002]
[1736379600779,0.21770682,95237.0,95231.0,0.002]
[1736379600981,0.21770682,95237.0,95219.0,0.023]
[1736379601176,0.21770682,95237.0,95221.0,0.023]
[1736379601821,0.21770682,95237.0,95223.0,0.002]
[1736379601962,0.21770682,95237.0,95221.0,0.023]
[1736379609497,0.0764,95236.0,95221.0,0.023]
[1736379609848,0.2176901,95235.0,95221.0,0.023]
[1736379613795,0.2176901,95235.0,95223.0,0.023]
[1736379614203,0.0766,95224.0,95215.0,0.023]
[1736379614402,0.00653794,95223.0,95215.0,0.33734976]
[1736379614673,0.0766,95224.0,95215.0,0.33734976]
[1736379614857,0.0766,95224.0,95220.0,0.023]
[1736379614994,0.00654084,95223.0,95220.0,0.023]
[1736379615203,0.0766,95224.0,95220.0,0.023]
[1736379615407,0.00654084,95223.0,95220.0,0.02350129]
[1736379615613,0.08727001,95224.0,95220.0,0.02350129]
[1736379615817,0.00654084,95223.0,95220.0,0.02350129]
[1736379616023,0.08727001,95224.0,95220.0,0.02350129]
[1736379616224,0.00654084,95223.0,95220.0,0.02350129]
[1736379616431,0.08727001,95224.0,95220.0,0.02350129]
[1736379616675,0.00654084,95223.0,95220.0,0.02350129]
[1736379616879,0.08727001,95224.0,95220.0,0.02350129]
[1736379617076,0.00654084,95223.0,95220.0,0.02350129]
[1736379617254,0.08727001,95224.0,95220.0,0.02350129]
[1736379617455,0.00654084,95223.0,95220.0,0.00050129]
[1736379617684,0.08727001,95224.0,95220.0,0.00150129]
[1736379617885,0.00654084,95223.0,95220.0,0.00150129]
[1736379618109,0.08727001,95224.0,95220.0,0.00250129]
[1736379618484,0.00654084,95223.0,95220.0,0.00150129]
[1736379619557,0.00654084,95223.0,95220.0,0.00050129]
[1736379620083,0.00654084,95223.0,95220.0,0.00350129]
[1736379620692,0.00654084,95223.0,95220.0,0.00450129]
[1736379626622,0.00548449,95223.0,95221.0,0.023]
[1736379627672,0.00548449,95223.0,95220.0,0.00050129]
[1736379627847,0.00548449,95223.0,95221.0,0.001]
[1736379628046,0.00548449,95223.0,95221.0,0.004]
[1736379628548,0.00548449,95223.0,95221.0,0.003]
[1736379628905,0.00548449,95223.0,95221.0,0.026]
[1736379630293,0.00548449,95223.0,95222.0,0.023]
[1736379630584,0.00548449,95223.0,95221.0,0.004]
[1736379631293,0.00548449,95223.0,95221.0,0.003]
[1736379631501,0.00548449,95223.0,95222.0,0.001]
[1736379631719,0.01183734,95223.0,95222.0,0.001]
[1736379631895,0.01183734,95223.0,95222.0,0.004]
[1736379632100,0.01183734,95223.0,95222.0,0.003]
[1736379632318,0.22187234,95223.0,95220.0,0.00050129]
[1736379632908,0.22187234,95223.0,95221.0,0.001]
[1736379633110,0.22187234,95223.0,95220.0,0.00050129]
[1736379634794,0.22187234,95223.0,95222.0,0.001]
[1736379634994,0.22187234,95223.0,95220.0,0.00050129]
[1736379635449,0.22187234,95223.0,95221.0,0.023]
[1736379635994,0.22187234,95223.0,95220.0,0.00050129]
[1736379636298,0.22187234,95223.0,95222.0,0.001]
[1736379636597,0.22187234,95223.0,95220.0,0.00050129]
[1736379638370,0.22187234,95223.0,95221.0,0.024]
[1736379638792,0.22187234,95223.0,95221.0,0.023]
[1736379639987,0.22187234,95223.0,95221.0,0.024]
[1736379651366,0.22176344,95223.0,95221.0,0.024]
[1736379656990,0.23223365,95223.0,95221.0,0.024]
[1736379659310,0.23131361,95223.0,95221.0,0.024]
[1736379663106,0.37879976,95222.0,95221.0,0.001]
[1736379663312,0.3918744,95222.0,95221.0,0.001]
[1736379663517,1.1228744,95222.0,95221.0,0.001]
[1736379663895,1.1228744,95222.0,95211.0,0.0943907]
[1736379663896,0.1,95215.0,95211.0,0.0943907]
[1736379664096,0.5746,95212.0,95211.0,0.07088341]
[1736379664299,0.1,95207.0,95187.0,0.07088341]
[1736379664505,0.488279,95202.0,95187.0,0.07088341]
[1736379664749,0.59257876,95202.0,95187.0,0.07088341]
[1736379664944,0.60328708,95202.0,95187.0,0.07088341]
[1736379665227,0.70328708,95202.0,95187.0,0.07088341]
[1736379665432,0.80758684,95202.0,95187.0,0.07088341]
[1736379665607,0.80758684,95202.0,95182.0,8.52e-05]
[1736379666633,0.70328708,95202.0,95182.0,8.52e-05]
[1736379666843,1.05139363,95202.0,95182.0,8.52e-05]
[1736379667034,1.06813618,95202.0,95201.0,0.0010852]
[1736379667611,1.06213618,95202.0,95201.0,8.52e-05]
[1736379668032,1.39373618,95202.0,95201.0,0.0010852]
[1736379669857,1.38673618,95202.0,95201.0,8.52e-05]
[1736379670403,1.39273618,95202.0,95201.0,0.0010852]
[1736379670560,6.27873618,95202.0,95201.0,8.52e-05]
[1736379670765,6.44373618,95202.0,95201.0,0.0010852]
[1736379670961,6.54373618,95202.0,95201.0,0.0010852]
[1736379671176,6.07373618,95202.0,95201.0,0.0010852]
[1736379671387,5.8094072,95202.0,95201.0,0.0010852]
[1736379671581,5.7874072,95202.0,95201.0,0.0010852]
[1736379672990,0.409221,95183.0,95182.0,8.52e-05]
[1736379673181,0.484221,95183.0,95182.0,8.52e-05]
[1736379673387,0.59922231,95183.0,95182.0,8.52e-05]
[1736379674153,0.69927239,95183.0,95182.0,8.52e-05]
[1736379674339,5.63327239,95183.0,95182.0,0.0010852]
[1736379674541,6.18054788,95183.0,95182.0,0.0010852]
[1736379674951,6.07504159,95183.0,95182.0,8.52e-05]
[1736379675210,5.89534135,95183.0,95182.0,8.52e-05]
[1736379675445,5.57366613,95183.0,95182.0,2e-07]
[1736379675843,5.7246,95182.0,95181.0,8.52e-05]
[1736379676045,5.95669976,95182.0,95181.0,2e-07]
[1736379676246,1.02453185,95182.0,95181.0,2e-07]
[1736379676477,0.1,95166.0,95144.0,8.52e-05]
[1736379676676,0.74909876,95166.0,95144.0,8.52e-05]
[1736379677051,0.75968476,95166.0,95144.0,8.52e-05]
[1736379677641,0.76868476,95166.0,95144.0,8.52e-05]
[1736379678423,0.77036237,95166.0,95144.0,8.52e-05]
[1736379678764,0.77336237,95166.0,95144.0,8.52e-05]
[1736379678957,0.360181,95156.0,95155.0,0.7999924]
[1736379679167,0.54668076,95156.0,95155.0,0.7999924]
[1736379679368,0.55719378,95156.0,95155.0,0.7999924]
[1736379680647,0.56319378,95156.0,95155.0,0.8009924]
[1736379681960,0.56419378,95156.0,95155.0,0.8009924]
[1736379683192,0.88879378,95156.0,95155.0,0.8009924]
[1736379684590,1.97263003,95156.0,95155.0,0.8009924]
[1736379684797,2.98463003,95156.0,95155.0,0.8009924]
[1736379685028,2.17063003,95156.0,95155.0,0.8009924]
[1736379685226,1.95163003,95156.0,95155.0,0.8009924]
[1736379685605,1.87699378,95156.0,95155.0,0.8009924]
[1736379688106,1.88740345,95156.0,95155.0,0.8009924]
[1736379688308,1.98740345,95156.0,95155.0,0.8009924]
[1736379691375,1.04840345,95156.0,95155.0,0.8009924]
[1736379691691,2.18540345,95156.0,95155.0,0.8009924]
[1736379691929,2.17740345,95156.0,95155.0,0.8009924]
[1736379692521,2.24879671,95156.0,95155.0,0.8009924]
[1736379692923,2.25047572,95156.0,95155.0,0.8009924]
[1736379695717,2.17908246,95156.0,95155.0,0.8009924]
[1736379696637,2.17639813,95156.0,95155.0,0.8009924]
[1736379699266,2.23239813,95156.0,95155.0,0.8009924]
[1736379702078,1.10339813,95156.0,95155.0,0.8009924]
[1736379702247,3.11339813,95156.0,95155.0,0.8009924]
[1736379702469,4.20339813,95156.0,95155.0,0.8009924]
[1736379704674,0.81431912,95156.0,95155.0,0.8009924]
[1736379715883,0.95483007,95156.0,95155.0,0.8009924]
[1736379716839,1.16131361,95156.0,95155.0,0.8009924]
[1736379723053,1.44421925,95156.0,95155.0,0.8009924]
[1736379725473,1.16131361,95156.0,95155.0,0.8009924]
[1736379750481,1.44400148,95156.0,95155.0,0.8009924]
[1736379751794,1.16131361,95156.0,95155.0,0.8009924]
[1736379767520,1.16131361,95156.0,95155.0,0.8239924]
[1736379767521,0.36182318,95156.0,95155.0,0.8239924]
[1736379767718,0.36182318,95156.0,95155.0,0.9000924]
[1736379767972,0.35904946,95156.0,95155.0,0.9000924]
[1736379768142,0.35399449,95156.0,95155.0,0.9000924]
[1736379768731,0.007,95156.0,95155.0,0.9000924]
[1736379769306,0.006,95156.0,95155.0,0.9000924]
[1736379769415,0.09424481,95162.0,95157.0,0.0761]
[1736379770061,0.210155,95168.0,95158.0,0.023]
[1736379770264,0.210155,95168.0,95160.0,0.023]
[1736379771101,0.002,95162.0,95160.0,0.023]
[1736379771728,0.002,95162.0,95161.0,0.0991]
[1736379771947,0.002,95162.0,95161.0,0.14835071]
[1736379773236,0.002,95162.0,95161.0,0.1473]
[1736379774340,0.210125,95182.0,95161.0,0.0752]
[1736379774525,0.210125,95182.0,95163.0,0.023]
[1736379776350,0.210125,95182.0,95163.0,0.02405071]
[1736379776786,0.22091761,95178.0,95163.0,0.02405071]
[1736379777164,0.22091761,95178.0,95163.0,0.02705071]
[1736379777365,0.43105161,95178.0,95163.0,0.02705071]
[1736379777766,0.43105161,95178.0,95163.0,0.02405071]
[1736379778047,0.43105161,95178.0,95163.0,0.02505071]
[1736379780441,0.22091761,95178.0,95163.0,0.02505071]
[1736379780737,0.210142,95174.0,95163.0,0.02505071]
[1736379780934,0.210142,95174.0,95163.0,0.024]
[1736379781636,0.210142,95174.0,95163.0,0.023]
[1736379781853,0.210142,95174.0,95163.0,0.025]
[1736379782614,0.210142,95174.0,95163.0,0.02605071]
[1736379782841,0.210142,95174.0,95163.0,0.02705071]
[1736379786401,0.22091761,95178.0,95163.0,0.02705071]
[1736379786824,0.01078361,95178.0,95165.0,0.023]
[1736379787006,0.210128,95181.0,95167.0,0.023]
[1736379787182,0.15,95184.0,95167.0,0.023]
[1736379787381,0.15,95184.0,95170.0,0.0814]
[1736379787584,0.15,95184.0,95171.0,0.023]
[1736379788388,0.16029103,95184.0,95171.0,0.023]
[1736379788894,0.00305008,95183.0,95171.0,0.024]
[1736379791792,0.00305008,95183.0,95172.0,0.0010506]
[1736379792909,5.008e-05,95183.0,95172.0,0.0010506]
[1736379793031,0.00305008,95183.0,95174.0,0.023]
[1736379793227,0.00305008,95183.0,95174.0,0.12729976]
[1736379793894,0.00305008,95183.0,95176.0,0.023]
[1736379794099,0.00305008,95183.0,95178.0,0.023]
[1736379794343,5.008e-05,95183.0,95181.0,0.023]
[1736379794538,5.008e-05,95183.0,95181.0,0.02405051]
[1736379794798,0.00305008,95183.0,95181.0,0.02405051]
[1736379795098,5.008e-05,95183.0,95182.0,0.233123]
[1736379795303,0.00305008,95183.0,95182.0,0.023]
[1736379795515,0.00305008,95183.0,95182.0,0.02405048]
[1736379795666,5.008e-05,95183.0,95182.0,0.02405048]
[1736379795874,5.008e-05,95183.0,95182.0,0.20945024]
[1736379796079,0.00305008,95183.0,95182.0,0.41852276]
[1736379796275,5.008e-05,95183.0,95182.0,0.41852276]
[1736379797244,5.008e-05,95183.0,95182.0,0.46352276]
[1736379797609,5.008e-05,95183.0,95182.0,0.78812276]
[1736379797836,5.008e-05,95183.0,95182.0,0.79012276]
[1736379798043,5.008e-05,95183.0,95182.0,0.89012276]
[1736379798335,5.008e-05,95183.0,95182.0,0.91115229]
[1736379798492,5.008e-05,95183.0,95182.0,0.90915229]
[1736379798695,5.008e-05,95183.0,95182.0,0.91315229]
[1736379798890,0.00105008,95183.0,95182.0,0.92015229]
[1736379799095,5.008e-05,95183.0,95182.0,0.90915229]
[1736379799346,0.00205008,95183.0,95182.0,0.92415229]
[1736379802086,0.00098401,95183.0,95182.0,0.92415229]
[1736379805190,0.00098401,95183.0,95182.0,1.07415229]
[1736379805493,0.00098401,95183.0,95182.0,1.17415229]
[1736379810534,0.00098401,95183.0,95182.0,1.27163029]
[1736379811369,0.00098401,95183.0,95182.0,1.21623029]
[1736379811545,0.00098401,95183.0,95182.0,1.27159029]
[1736379812283,0.00098401,95183.0,95182.0,1.22951229]
[1736379813030,0.00098401,95183.0,95182.0,1.17415229]
[1736379813285,0.00098401,95183.0,95182.0,1.26222073]
[1736379814261,0.00098401,95183.0,95182.0,1.22951229]
[1736379814896,0.00098401,95183.0,95182.0,1.76601229]
[1736379818202,0.06555461,95212.0,95201.0,0.21008]
[1736379818489,0.06555461,95212.0,95202.0,0.18265976]
[1736379819009,0.06555461,95212.0,95203.0,0.00105022]
[1736379819217,0.06555461,95212.0,95205.0,0.023]
[1736379819469,0.06555461,95212.0,95207.0,0.023]
[1736379819704,0.0001706,95217.0,95209.0,0.023]
[1736379819926,0.0001706,95217.0,95210.0,0.00105016]
[1736379820135,0.0001706,95217.0,95211.0,0.00105016]
[1736379821040,0.002,95212.0,95209.0,0.12729976]
[1736379821268,0.0795,95216.0,95210.0,0.10429976]
[1736379821501,0.0795,95216.0,95211.0,0.023]
[1736379821703,0.0795,95216.0,95211.0,0.024]
[1736379822128,0.0795,95216.0,95211.0,0.025]
[1736379822550,0.0795,95216.0,95211.0,0.023]
[1736379822934,0.0795,95216.0,95211.0,0.025]
[1736379824254,0.0805,95216.0,95211.0,0.025]
[1736379830999,0.001,95216.0,95211.0,0.025]
[1736379833198,0.001,95216.0,95214.0,0.210053]
[1736379833415,0.001,95216.0,95215.0,0.12834992]
[1736379834482,0.0001706,95217.0,95216.0,0.023]
[1736379834679,0.0001706,95217.0,95216.0,0.33734776]
[1736379835771,0.0001706,95217.0,95216.0,0.33934776]
[1736379836308,0.0001706,95217.0,95216.0,0.34034776]
[1736379837622,0.0001706,95217.0,95216.0,0.35075872]
[1736379838539,0.0001706,95217.0,95216.0,0.40611872]